bitfinex-derivatives/quotes_ETHF0:USTF0_20220103
["timestamp","ask_amount","ask_price","bid_price","bid_amount"]
[1641183236384,1.00131766,3790.9,3790.7,3.41294445]
[1641183236587,1.18986225,3791.3,3790.7,3.41294445]
[1641183236884,2.00479,3791.5,3790.7,2.234781]
[1641183236885,1.18986225,3791.2,3790.7,2.234781]
[1641183237086,1.18986225,3791.2,3790.8,0.65368565]
[1641183237283,1.18986225,3791.2,3790.9,0.122356]
[1641183237485,1.18986225,3791.2,3791.0,0.229991]
[1641183237784,1.18986225,3791.2,3791.0,0.88367665]
[1641183238286,0.96703743,3791.1,3791.0,0.88367665]
[1641183241790,0.96703743,3791.1,3791.0,2.63925018]
[1641183243694,22.3131,3791.9,3791.0,2.63925018]
[1641183243891,23.3183,3792.0,3791.0,2.63925018]
[1641183243892,0.66033905,3791.8,3791.0,2.63925018]
[1641183244293,0.66033905,3791.8,3791.1,0.65368565]
[1641183245698,0.66033905,3791.8,3791.6,1.17611369]
[1641183245896,0.73694805,3791.8,3791.6,1.40610469]
[1641183246096,0.66033905,3791.8,3791.6,1.40610469]
[1641183248704,0.076609,3791.7,3791.6,1.17611369]
[1641183249506,0.076609,3791.7,3791.5,1.17611369]
[1641183250008,0.66033905,3791.8,3791.6,0.229991]
[1641183250407,0.076609,3791.7,3791.5,1.17611369]
[1641183250606,0.66033905,3791.8,3791.5,1.17611369]
[1641183250806,0.66033905,3791.8,3791.6,0.229991]
[1641183251106,0.89572326,3791.7,3791.6,0.229991]
[1641183251307,0.89572326,3791.7,3791.4,0.88138404]
[1641183251705,0.89572326,3791.7,3791.5,0.229991]
[1641183252308,0.66033905,3791.8,3791.6,0.88138404]
[1641183252706,0.66033905,3791.8,3791.7,0.229991]
[1641183252908,0.66033905,3791.8,3791.7,0.784291]
[1641183253109,0.73694805,3791.8,3791.7,0.5543]
[1641183254410,0.73694805,3791.8,3791.7,1.43568404]
[1641183254610,0.66033905,3791.8,3791.7,1.66567504]
[1641183255212,0.73694805,3791.8,3791.7,1.43568404]
[1641183255612,0.66033905,3791.8,3791.7,1.43568404]
[1641183255814,0.66033905,3791.8,3791.7,1.66567504]
[1641183256615,0.73694805,3791.8,3791.7,1.66567504]
[1641183256815,0.73694805,3791.8,3791.7,1.43568404]
[1641183260120,0.73694805,3791.8,3791.7,0.5543]
[1641183260322,0.73694805,3791.8,3791.6,0.88138404]
[1641183261825,1.63267131,3791.8,3791.6,0.88138404]
[1641183262826,0.73694805,3791.8,3791.7,0.88138404]
[1641183264927,1.0250569,3791.8,3791.4,1.30427069]
[1641183265128,2.21491915,3791.8,3791.7,1.17611369]
[1641183265730,2.13831015,3791.8,3791.7,1.40610469]
[1641183266128,2.21491915,3791.8,3791.7,1.17611369]
[1641183271633,2.13831015,3791.8,3791.7,1.40610469]
[1641183271834,2.21491915,3791.8,3791.7,1.17611369]
[1641183272633,1.0250569,3791.8,3791.7,1.17611369]
[1641183273534,0.9484479,3791.8,3791.7,1.17611369]
[1641183273734,0.9484479,3791.8,3791.7,1.40610469]
[1641183273934,1.0250569,3791.8,3791.7,1.17611369]
[1641183274533,0.9484479,3791.8,3791.7,1.40610469]
[1641183274833,0.9484479,3791.8,3791.7,1.17611369]
[1641183275033,1.0250569,3791.8,3791.7,1.17611369]
[1641183277837,12.3350569,3791.8,3791.2,1.75557353]
[1641183278037,11.31,3791.5,3791.2,1.75557353]
[1641183278238,1.69396827,3791.1,3790.9,1.40479736]
[1641183278438,0.128157,3791.0,3790.9,1.40479736]
[1641183279037,0.204766,3791.0,3790.6,2.9289651]
[1641183279240,0.204766,3791.0,3790.8,0.88244125]
[1641183279639,2.00479,3790.9,3790.8,0.88244125]
[1641183279839,3.21280664,3790.9,3790.8,0.88244125]
[1641183280441,3.21280664,3790.9,3790.7,0.88244125]
[1641183280839,0.076609,3790.8,3790.7,0.88244125]
[1641183282344,3.21280664,3790.9,3790.7,1.11243225]
[1641183282543,0.076609,3790.8,3790.7,0.88244125]
[1641183282941,3.21280664,3790.9,3790.7,0.88244125]
[1641183283242,0.076609,3790.8,3790.7,0.88244125]
[1641183284042,1.20801664,3790.9,3790.7,1.11243225]
[1641183284246,0.076609,3790.8,3790.7,0.88244125]
[1641183287550,0.076609,3790.8,3790.6,0.88244125]
[1641183288756,0.076609,3790.8,3790.7,0.88244125]
[1641183292762,0.076609,3790.8,3790.5,1.17602136]
[1641183293562,0.076609,3790.8,3790.7,0.88120953]
[1641183294661,0.076609,3790.8,3790.1,2.00479]
[1641183294863,0.97097599,3790.8,3790.4,1.76474005]
[1641183296969,0.89436699,3790.8,3790.4,1.89289705]
[1641183299172,0.89436699,3790.8,3790.4,1.76474005]
[1641183303678,0.89436699,3790.8,3790.5,1.76474005]
[1641183303879,0.89436699,3790.8,3790.6,0.229991]
[1641183304078,0.97097599,3790.8,3790.6,0.5717]
[1641183304579,0.89436699,3790.8,3790.6,0.5717]
[1641183304781,0.89436699,3790.8,3790.7,0.229991]
[1641183305382,0.97097599,3790.8,3790.6,0.5717]
[1641183305582,0.076609,3790.8,3790.6,1.74818597]
[1641183307582,3.21280664,3790.9,3790.6,1.74818597]
[1641183307583,3.21280664,3790.9,3790.6,1.97817697]
[1641183307783,0.076609,3790.8,3790.6,1.97817697]
[1641183307984,0.076609,3790.8,3790.6,1.74818597]
[1641183308484,3.21280664,3790.9,3790.6,1.97817697]
[1641183308686,3.21280664,3790.9,3790.8,0.88085551]
[1641183308884,3.28941564,3790.9,3790.8,0.88085551]
[1641183312391,3.21280664,3790.9,3790.8,0.88085551]
[1641183313390,3.28941564,3790.9,3790.8,0.88085551]
[1641183314192,3.21280664,3790.9,3790.8,1.11084651]
[1641183314397,1.49238088,3791.7,3790.8,1.23320251]
[1641183315103,1.49238088,3791.7,3790.9,2.26306348]
[1641183315494,1.49238088,3791.7,3791.1,2.00479]
[1641183316495,1.00528401,3791.6,3791.1,2.00479]
[1641183317601,1.00528401,3791.6,3791.1,3.50479]
[1641183317899,1.00528401,3791.6,3791.2,0.76295268]
[1641183318099,1.00528401,3791.6,3791.3,0.128157]
[1641183318302,1.00528401,3791.6,3791.4,0.229991]
[1641183318500,1.00528401,3791.6,3791.4,0.970691]
[1641183320403,8.401e-05,3791.6,3791.4,0.970691]
[1641183320803,8.401e-05,3791.6,3791.5,0.7626474]
[1641183321003,8.401e-05,3791.6,3791.4,0.970691]
[1641183321608,2.00479,3792.4,3791.5,1.5]
[1641183321809,1.49238088,3792.8,3792.1,1.5]
[1641183322007,1.49238088,3792.8,3792.2,0.128157]
[1641183322208,1.49238088,3792.8,3792.2,0.922357]
[1641183322813,2.57435143,3792.8,3792.2,0.922357]
[1641183323010,1.08197055,3792.8,3792.2,0.922357]
[1641183323612,1.08197055,3792.8,3792.3,2.00479]
[1641183325516,1.08197055,3792.8,3792.4,1.17232108]
[1641183326519,1.08197055,3792.8,3792.3,2.00479]
[1641183327319,1.88027055,3792.8,3792.3,2.00479]
[1641183332923,1.08197055,3792.8,3792.3,2.70729]
[1641183334526,1.21012755,3792.8,3792.3,2.70729]
[1641183336126,1.08197055,3792.8,3792.3,2.70729]
[1641183337528,1.08197055,3792.8,3792.7,2.00479]
[1641183337730,1.08197055,3792.8,3792.7,2.234781]
[1641183338329,1.15857955,3792.8,3792.7,2.00479]
[1641183338729,1.08197055,3792.8,3792.7,2.00479]
[1641183339830,1.15857955,3792.8,3792.7,2.00479]
[1641183340432,1.08197055,3792.8,3792.7,2.234781]
[1641183340632,1.08197055,3792.8,3792.7,2.00479]
[1641183340831,1.15857955,3792.8,3792.7,2.00479]
[1641183341431,1.08197055,3792.8,3792.7,2.234781]
[1641183342931,1.08197055,3792.8,3792.7,2.00479]
[1641183343934,1.15857955,3792.8,3792.7,2.00479]
[1641183344734,1.08197055,3792.8,3792.7,2.234781]
[1641183345335,1.08197055,3792.8,3792.7,2.744081]
[1641183349438,2.00479,3793.5,3792.7,2.744081]
[1641183349639,0.91031135,3793.3,3792.7,2.866437]
[1641183352439,0.91031135,3793.3,3792.7,2.744081]
[1641183352638,0.91031135,3793.3,3792.7,2.866437]
[1641183352840,0.91031135,3793.3,3792.7,2.744081]
[1641183353243,0.91031135,3793.3,3792.7,2.866437]
[1641183357243,0.91031135,3793.3,3792.7,2.744081]
[1641183357443,0.91031135,3793.3,3792.7,2.234781]
[1641183359543,0.91031135,3793.3,3792.7,2.857181]
[1641183365651,0.91031135,3793.3,3793.2,0.87607665]
[1641183366050,0.91031135,3793.3,3793.2,1.23422465]
[1641183366351,0.91031135,3793.3,3793.2,0.128157]
[1641183367152,0.98692035,3793.3,3793.2,0.128157]
[1641183367653,0.98692035,3793.3,3793.0,1.17232108]
[1641183367854,0.91031135,3793.3,3793.1,0.229991]
[1641183368054,0.91031135,3793.3,3793.2,0.128157]
[1641183368454,0.98692035,3793.3,3793.2,0.128157]
[1641183368656,0.91031135,3793.3,3793.2,0.128157]
[1641183369457,0.98692035,3793.3,3793.2,0.128157]
[1641183369957,0.91031135,3793.3,3793.2,0.128157]
[1641183371164,0.98692035,3793.3,3793.1,0.229991]
[1641183371361,0.91031135,3793.3,3793.1,0.358148]
[1641183371560,0.91031135,3793.3,3793.1,0.128157]
[1641183372064,0.076609,3793.2,3793.0,1.17232108]
[1641183372462,0.91031135,3793.3,3793.1,0.229991]
[1641183372662,0.91031135,3793.3,3793.0,1.17232108]
[1641183372962,0.076609,3793.2,3793.0,1.17232108]
[1641183373161,0.91031135,3793.3,3793.0,1.17232108]
[1641183373362,0.91031135,3793.3,3793.1,0.229991]
[1641183373564,0.91031135,3793.3,3793.2,0.8771622]
[1641183374263,0.98692035,3793.3,3793.2,0.8771622]
[1641183374465,0.98692035,3793.3,3792.9,1.30047808]
[1641183374466,0.98692035,3793.3,3793.1,0.8771622]
[1641183374668,0.91031135,3793.3,3793.2,0.229991]
[1641183375770,0.98692035,3793.3,3793.0,0.8771622]
[1641183376271,0.98692035,3793.3,3793.1,0.8771622]
[1641183376771,0.98692035,3793.3,3793.1,1.1071532]
[1641183376969,0.98692035,3793.3,3793.1,0.8771622]
[1641183377172,0.91031135,3793.3,3793.2,0.8771622]
[1641183377769,0.91031135,3793.3,3793.2,1.1071532]
[1641183378372,0.98692035,3793.3,3793.2,0.8771622]
[1641183378573,0.98692035,3793.3,3793.0,1.17232108]
[1641183378772,0.98692035,3793.3,3793.1,0.229991]
[1641183379574,0.91031135,3793.3,3793.1,0.229991]
[1641183379774,0.91031135,3793.3,3793.2,0.87788647]
[1641183379974,0.98692035,3793.3,3793.2,0.87788647]
[1641183380574,0.91031135,3793.3,3793.2,0.87788647]
[1641183380775,0.91031135,3793.3,3793.2,1.10787747]
[1641183381378,0.91031135,3793.3,3793.2,0.87788647]
[1641183381573,0.91031135,3793.3,3793.1,0.5867]
[1641183382776,0.91031135,3793.3,3793.2,1.10782889]
[1641183383177,0.91031135,3793.3,3793.2,0.87783789]
[1641183383579,0.91031135,3793.3,3793.1,0.5867]
[1641183384981,0.076609,3793.2,3793.1,0.5867]
[1641183385180,0.076609,3793.2,3793.0,1.17232108]
[1641183385380,0.91031135,3793.3,3793.1,1.40231208]
[1641183385680,0.91031135,3793.3,3793.1,1.17232108]
[1641183386080,0.91031135,3793.3,3792.9,0.128157]
[1641183388482,0.91031135,3793.3,3793.0,1.31726793]
[1641183388682,0.91031135,3793.3,3793.1,0.229991]
[1641183392785,0.98692035,3793.3,3793.1,0.229991]
[1641183392987,0.98692035,3793.3,3793.0,1.31726793]
[1641183393187,0.91031135,3793.3,3793.1,0.229991]
[1641183394388,0.91031135,3793.3,3793.0,1.31726793]
[1641183394688,0.91031135,3793.3,3793.1,0.229991]
[1641183395400,0.91031135,3793.3,3793.0,1.31726793]
[1641183395588,0.91031135,3793.3,3793.1,0.229991]
[1641183398093,0.91031135,3793.3,3793.1,0.99216029]
[1641183398393,0.91031135,3793.3,3793.1,0.229991]
[1641183398993,0.91031135,3793.3,3793.1,0.99218061]
[1641183401896,0.076609,3793.2,3793.1,0.76218961]
[1641183402095,0.91031135,3793.3,3793.1,0.99218061]
[1641183403700,0.98692035,3793.3,3793.1,0.99218061]
[1641183403902,0.91031135,3793.3,3793.1,0.99218061]
[1641183408812,0.98692035,3793.3,3793.1,0.99218061]
[1641183409013,0.98692035,3793.3,3793.1,0.76218961]
[1641183409413,1.65452035,3793.3,3793.1,0.76218961]
[1641183412517,1.65452035,3793.3,3792.8,2.00479]
[1641183412915,1.65452035,3793.3,3792.9,0.76285068]
[1641183413718,1.5,3793.2,3792.9,0.76285068]
[1641183413919,1.5,3793.0,3792.7,1.76474005]
[1641183414119,1.5,3792.8,3792.7,1.76474005]
[1641183414618,2.57664858,3792.8,3792.7,4.005e-05]
[1641183414819,2.65325758,3792.8,3792.7,4.005e-05]
[1641183415119,2.65325758,3792.8,3792.4,4.21061681]
[1641183415319,1.5,3792.6,3792.4,4.21061681]
[1641183415519,1.5,3792.6,3792.4,2.00479]
[1641183415520,0.076609,3792.5,3792.4,2.00479]
[1641183415719,0.128157,3792.7,3792.4,2.234781]
[1641183415923,0.128157,3792.7,3792.4,2.69989]
[1641183416522,0.076609,3792.6,3792.4,2.69989]
[1641183416720,0.128157,3792.7,3792.5,0.229991]
[1641183416920,0.128157,3792.7,3792.4,2.69989]
[1641183417321,0.076609,3792.6,3792.4,2.69989]
[1641183422222,0.80215828,3792.5,3792.4,2.69989]
[1641183426532,0.80215828,3792.5,3792.4,0.6951]
[1641183426731,0.80215828,3792.5,3792.1,1.76131418]
[1641183427132,0.80215828,3792.5,3792.3,2.00479]
[1641183427334,0.076609,3792.4,3792.3,2.78839]
[1641183427533,0.80215828,3792.5,3792.3,3.018381]
[1641183427736,0.80215828,3792.5,3792.3,2.78839]
[1641183428133,0.076609,3792.4,3792.3,2.78839]
[1641183428335,0.80215828,3792.5,3792.3,2.78839]
[1641183428535,0.80215828,3792.5,3792.3,3.018381]
[1641183429435,0.87876728,3792.5,3792.4,0.76599932]
[1641183430837,0.80215828,3792.5,3792.4,0.76599932]
[1641183431038,0.87876728,3792.5,3792.4,0.76599932]
[1641183432038,0.87876728,3792.5,3792.3,2.78839]
[1641183432239,0.87876728,3792.5,3792.3,3.018381]
[1641183432442,0.87876728,3792.5,3792.4,1.1736919]
[1641183433340,1.00112328,3792.5,3791.9,2.00479]
[1641183433940,1.00112328,3792.5,3792.3,1.17414039]
[1641183434940,1.00112328,3792.5,3791.9,2.00479]
[1641183436146,1.00112328,3792.5,3792.4,0.88084593]
[1641183436543,0.87876728,3792.5,3792.4,0.88084593]
[1641183437446,0.87876728,3792.5,3791.9,2.00479]
[1641183437750,0.87876728,3792.5,3792.3,0.88017451]
[1641183441554,0.87876728,3792.5,3791.9,2.00479]
[1641183445960,0.87876728,3792.5,3792.0,1.17354954]
[1641183450265,1.5,3792.2,3792.0,1.17354954]
[1641183450469,0.198965,3792.1,3791.7,2.00479]
[1641183450671,0.198965,3792.1,3791.9,1.17455463]
[1641183451268,0.198965,3792.1,3791.7,2.00479]
[1641183451467,0.98063146,3792.0,3791.7,2.00479]
[1641183451669,0.204766,3791.9,3791.7,2.00479]
[1641183451868,0.204766,3791.9,3791.4,2.00479]
[1641183457678,0.204766,3791.9,3791.5,0.87974751]
[1641183458381,0.204766,3791.9,3791.6,0.87974751]
[1641183460883,0.98063146,3792.0,3791.7,0.229991]
[1641183461881,0.98063146,3792.0,3791.7,1.10973851]
[1641183463281,0.98063146,3792.0,3791.8,0.87974751]
[1641183463480,1.05724046,3792.0,3791.8,0.87974751]
[1641183463681,0.98063146,3792.0,3791.8,0.87974751]
[1641183463883,0.98063146,3792.0,3791.9,0.229991]
[1641183467088,0.98063146,3792.0,3791.9,1.10973851]
[1641183470593,0.98063146,3792.0,3791.9,0.229991]
[1641183474696,1.05724046,3792.0,3791.8,0.76573003]
[1641183475595,1.05724046,3792.0,3791.9,0.229991]
[1641183475796,0.98063146,3792.0,3791.9,0.229991]
[1641183479198,1.18539746,3792.0,3791.8,0.76573003]
[1641183479597,0.98063146,3792.0,3791.8,0.99572103]
[1641183480800,0.98063146,3792.0,3791.9,1.1725235]
[1641183481404,0.98063146,3792.0,3791.9,1.93825353]
[1641183484804,1.05724046,3792.0,3791.9,1.93825353]
[1641183485205,0.98063146,3792.0,3791.9,1.93825353]
[1641183485708,0.98063146,3792.0,3791.9,2.16824453]
[1641183488312,1.05724046,3792.0,3791.9,1.93825353]
[1641183488710,0.98063146,3792.0,3791.9,1.93825353]
[1641183489309,0.98063146,3792.0,3791.9,2.16824453]
[1641183489911,0.98063146,3792.0,3791.9,0.99572103]
[1641183490411,0.98063146,3792.0,3791.9,0.229991]
[1641183491015,0.98063146,3792.0,3791.9,0.99572103]
[1641183491214,0.98063146,3792.0,3791.9,0.229991]
[1641183492315,1.05724046,3792.0,3791.9,0.229991]
[1641183492515,1.05724046,3792.0,3791.7,0.76573003]
[1641183492816,0.98063146,3792.0,3791.8,0.229991]
[1641183493217,0.98063146,3792.0,3791.7,0.76573003]
[1641183493416,0.076609,3791.9,3791.7,0.76573003]
[1641183493616,0.98063146,3792.0,3791.8,0.229991]
[1641183495218,0.076609,3791.9,3791.8,0.76573003]
[1641183495418,0.98063146,3792.0,3791.8,0.99572103]
[1641183495620,0.98063146,3792.0,3791.8,0.229991]
[1641183495819,0.98063146,3792.0,3791.9,0.76573003]
[1641183496224,1.05724046,3792.0,3791.7,0.76573003]
[1641183496420,1.5,3791.8,3791.5,1.76131418]
[1641183496620,1.5,3791.6,3791.3,2.20582681]
[1641183496821,1.5,3791.6,3791.2,3.01395226]
[1641183497020,2.00479,3791.5,3791.2,3.01395226]
[1641183497224,0.204766,3791.4,3791.2,3.01395226]
[1641183497421,1.25284049,3791.4,3791.2,3.01395226]
[1641183498920,1.25284049,3791.4,3790.7,0.3917]
[1641183504430,1.25284049,3791.4,3790.8,2.20394142]
[1641183505734,1.25284049,3791.4,3791.1,1.76365812]
[1641183505931,1.25284049,3791.4,3791.2,0.229991]
[1641183506331,1.17623149,3791.4,3791.2,0.229991]
[1641183507131,0.076609,3791.3,3791.0,1.76365812]
[1641183507333,1.17623149,3791.4,3791.0,1.76365812]
[1641183509434,1.17623149,3791.4,3790.9,1.76365812]
[1641183510733,1.17623149,3791.4,3790.7,2.59564142]
[1641183510935,1.17623149,3791.4,3791.1,2.20394142]
[1641183511137,0.076609,3791.3,3791.1,2.20394142]
[1641183511536,0.076609,3791.3,3790.8,2.9289651]
[1641183511736,0.076609,3791.3,3790.9,1.76405939]
[1641183512136,1.38709424,3791.5,3790.9,1.76405939]
[1641183512837,0.83643855,3791.4,3790.9,1.76405939]
[1641183513036,0.83643855,3791.4,3790.8,1.76405939]
[1641183513638,0.83643855,3791.4,3790.9,0.46429916]
[1641183515341,0.83643855,3791.4,3791.0,1.5]
[1641183515639,0.89268428,3792.0,3791.1,0.122356]
[1641183516039,0.89268428,3792.0,3791.1,0.58665516]
[1641183516339,0.89268428,3792.0,3791.1,0.122356]
[1641183516539,1.19018827,3792.3,3791.2,0.46429916]
[1641183516741,0.89268428,3792.5,3791.1,1.88641539]
[1641183517143,1.26799824,3792.4,3791.8,2.00479]
[1641183517341,1.26799824,3792.4,3791.8,2.79419]
[1641183518145,1.26799824,3792.4,3792.0,0.87878997]
[1641183519841,1.26799824,3792.4,3792.1,0.128157]
[1641183520246,0.076609,3792.3,3792.1,0.128157]
[1641183520445,1.26799824,3792.4,3792.2,0.229991]
[1641183520943,1.26799824,3792.4,3792.1,0.128157]
[1641183521145,0.076609,3792.3,3792.1,0.128157]
[1641183522948,0.076609,3792.3,3792.0,0.87878997]
[1641183524046,0.076609,3792.3,3791.8,2.00479]
[1641183524047,0.076609,3792.3,3791.9,0.87878997]
[1641183531559,0.076609,3792.3,3792.0,0.87878997]
[1641183532859,0.076609,3792.3,3791.9,0.87878997]
[1641183533760,0.076609,3792.3,3791.8,2.00479]
[1641183533761,0.076609,3792.3,3792.0,0.87878997]
[1641183533959,0.076609,3792.3,3792.1,0.229991]
[1641183534761,1.26799824,3792.4,3792.1,0.229991]
[1641183534962,0.076609,3792.3,3792.1,0.229991]
[1641183535164,1.26799824,3792.4,3792.0,0.87878997]
[1641183536763,1.26799824,3792.4,3792.2,0.87878997]
[1641183536963,0.076609,3792.3,3792.2,0.87878997]
[1641183538764,0.076609,3792.3,3792.1,0.87878997]
[1641183538966,1.26799824,3792.4,3792.1,1.10878097]
[1641183539564,0.076609,3792.3,3792.1,0.87878997]
[1641183539966,2.16068252,3792.4,3792.1,0.87878997]
[1641183540368,0.076609,3792.3,3792.1,0.87878997]
[1641183540767,0.763309,3792.3,3792.1,0.87878997]
[1641183540969,0.763309,3792.3,3791.8,3.17650996]
[1641183540970,0.763309,3792.3,3792.2,0.87878997]
[1641183541969,2.263309,3792.3,3792.2,0.87878997]
[1641183542169,0.763309,3792.3,3792.2,0.87878997]
[1641183542371,0.763309,3792.3,3791.9,0.87878997]
[1641183543973,0.6867,3792.3,3791.9,0.87878997]
[1641183544374,1.57938428,3792.3,3791.8,2.88357997]
[1641183545876,0.6867,3792.3,3792.0,0.87878997]
[1641183546078,1.26799824,3792.4,3792.1,0.229991]
[1641183546276,1.26799824,3792.4,3792.0,0.87878997]
[1641183547079,2.16068252,3792.4,3791.9,0.87878997]
[1641183551287,1.5,3792.3,3791.9,0.87878997]
[1641183551486,2.16068252,3792.4,3791.9,0.87878997]
[1641183551688,3.66068252,3792.4,3791.9,0.87878997]
[1641183552787,2.16068252,3792.4,3791.9,0.87878997]
[1641183553590,2.00479,3792.2,3791.9,0.87878997]
[1641183553788,0.076609,3792.1,3791.9,0.87878997]
[1641183553988,0.076609,3792.1,3791.9,1.10878097]
[1641183554189,2.00479,3792.2,3791.9,1.10878097]
[1641183554389,2.00479,3792.2,3791.9,0.87878997]
[1641183554790,0.076609,3792.1,3791.9,0.87878997]
[1641183556292,0.076609,3792.1,3791.4,2.00479]
[1641183556293,0.076609,3792.1,3791.8,0.87878997]
[1641183558393,0.076609,3792.1,3791.7,0.87878997]
[1641183560195,0.076609,3792.1,3791.8,0.87878997]
[1641183560396,0.076609,3792.0,3791.8,0.87878997]
[1641183560595,2.00479,3792.2,3791.8,0.87878997]
[1641183561696,2.89747428,3792.2,3791.7,0.87878997]
[1641183562698,0.89268428,3792.0,3791.5,0.87878997]
[1641183563099,1.11778746,3791.9,3791.5,0.87878997]
[1641183563700,2.00479,3791.7,3791.5,0.87878997]
[1641183563899,0.076609,3791.6,3791.5,0.87878997]
[1641183564300,0.076609,3791.6,3791.4,1.17171996]
[1641183565300,2.00479,3791.7,3791.5,0.229991]
[1641183565502,0.076609,3791.6,3791.4,1.17171996]
[1641183567506,2.00479,3791.7,3791.5,0.229991]
[1641183568006,0.076609,3791.6,3791.4,1.17171996]
[1641183569008,0.076609,3791.6,3791.4,1.40171096]
[1641183569506,0.076609,3791.6,3791.4,1.17171996]
[1641183569709,0.076609,3791.6,3791.3,1.17171996]
[1641183569908,0.076609,3791.5,3791.4,0.229991]
[1641183570112,2.00479,3791.7,3791.3,1.17171996]
[1641183570711,2.89747428,3791.7,3791.1,1.17171996]
[1641183571113,1.10259695,3791.6,3791.1,1.17171996]
[1641183572013,0.122356,3791.5,3791.1,1.17171996]
[1641183572215,1.31863669,3791.2,3790.6,1.76405939]
[1641183572414,1.5,3791.0,3790.3,2.20394142]
[1641183572622,1.5,3790.8,3790.3,2.20394142]
[1641183572816,1.5,3790.5,3790.3,2.20394142]
[1641183573018,0.076609,3790.4,3790.3,2.20394142]
[1641183573217,1.576609,3790.4,3790.2,1.76328839]
[1641183573817,4.00958,3790.3,3789.9,2.20394142]
[1641183574017,1.5,3790.2,3789.6,2.9289651]
[1641183575520,5.18639661,3790.3,3789.6,2.9289651]
[1641183575821,2.00479,3789.7,3789.6,2.9289651]
[1641183576020,2.00479,3789.7,3789.1,45.2162]
[1641183576021,3.13195781,3789.7,3789.2,0.74787954]
[1641183576320,3.05534881,3789.7,3789.2,0.74787954]
[1641183577726,2.00479,3789.3,3789.2,0.74787954]
[1641183577923,3.24771842,3789.3,3789.2,0.97787054]
[1641183578525,3.24771842,3789.3,3788.5,2.127146]
[1641183578728,3.24771842,3789.3,3788.5,2.255303]
[1641183580825,1.45266141,3789.3,3788.5,2.255303]
[1641183581326,1.45266141,3789.3,3788.5,4.46413635]
[1641183583727,1.45266141,3789.3,3788.9,1.76711448]
[1641183584529,1.45266141,3789.3,3788.9,2.42691448]
[1641183585127,2.00479,3789.7,3788.9,3.92691448]
[1641183585333,0.89268428,3790.2,3789.3,1.5]
[1641183585528,0.89268428,3790.2,3789.4,0.250513]
[1641183585828,0.89268428,3790.3,3789.6,2.00479]
[1641183587129,1.94523121,3790.3,3789.6,2.00479]
[1641183587527,1.05254693,3790.3,3789.6,2.00479]
[1641183587730,1.05254693,3790.3,3790.0,1.1769167]
[1641183587930,1.05254693,3790.3,3790.1,0.229991]
[1641183588931,2.00479,3790.9,3790.2,0.250513]
[1641183589131,0.78132024,3790.8,3790.2,0.250513]
[1641183589932,0.78132024,3790.8,3790.2,2.255303]
[1641183590132,0.78132024,3790.8,3790.2,2.132947]
[1641183595749,2.024e-05,3790.8,3790.2,2.132947]
[1641183595949,2.024e-05,3790.8,3790.6,2.00479]
[1641183596150,2.024e-05,3790.8,3790.7,0.229991]
[1641183596350,2.024e-05,3790.8,3790.7,0.352347]
[1641183596750,2.024e-05,3790.8,3790.7,0.229991]
[1641183600053,2.024e-05,3790.8,3790.6,2.00479]
[1641183600854,0.07662924,3790.8,3790.6,2.234781]
[1641183601258,0.07662924,3790.8,3790.6,0.229991]
[1641183601454,2.024e-05,3790.8,3790.6,0.229991]
[1641183602154,2.024e-05,3790.8,3790.6,2.234781]
[1641183603357,0.076609,3790.7,3790.6,2.00479]
[1641183603757,2.024e-05,3790.8,3790.6,2.00479]
[1641183604759,0.07662924,3790.8,3790.6,2.00479]
[1641183604960,2.024e-05,3790.8,3790.6,2.00479]
[1641183605662,0.07662924,3790.8,3790.6,2.00479]
[1641183608065,0.07662924,3790.8,3790.3,0.87772149]
[1641183608470,0.07662924,3790.8,3790.2,2.00479]
[1641183608471,0.07662924,3790.8,3790.4,0.87772149]
[1641183608666,0.19898524,3790.8,3790.4,0.87772149]
[1641183609270,0.19898524,3790.8,3790.3,0.87772149]
[1641183610068,2.00479,3790.4,3790.3,0.87772149]
[1641183610268,2.081399,3790.4,3790.3,0.87772149]
[1641183610469,2.00479,3790.4,3790.3,1.10771249]
[1641183610871,2.00479,3790.4,3789.9,0.87772149]
[1641183611171,1.23786908,3790.3,3789.9,0.87772149]
[1641183612771,1.23786908,3790.3,3790.0,0.87772149]
[1641183612970,0.076609,3790.2,3790.0,0.87772149]
[1641183613570,1.23786908,3790.3,3790.0,0.87772149]
[1641183613973,1.23786908,3790.3,3789.4,2.127146]
[1641183613974,1.23786908,3790.3,3789.9,0.87772149]
[1641183617278,1.23786908,3790.3,3790.0,0.87772149]
[1641183617477,0.076609,3790.2,3790.0,0.87772149]
[1641183619081,0.076609,3790.2,3789.8,0.87772149]
[1641183620386,0.122356,3790.1,3789.8,0.87772149]
[1641183620681,0.076609,3790.0,3789.8,0.87772149]
[1641183620881,1.23786908,3790.3,3789.8,0.87772149]
[1641183621881,1.23786908,3790.3,3789.6,0.87772149]
[1641183622481,1.23786908,3790.3,3789.7,0.128157]
[1641183622682,1.23786908,3790.3,3789.6,0.87772149]
[1641183623282,0.89217304,3790.2,3789.4,2.00479]
[1641183624286,0.89217304,3790.0,3789.6,0.87772149]
[1641183627288,0.89217304,3790.0,3789.7,0.87772149]
[1641183627488,0.076609,3789.9,3789.7,0.87772149]
[1641183627888,1.20964479,3789.8,3789.7,0.87772149]
[1641183629090,1.20964479,3789.8,3789.6,0.87772149]
[1641183629590,0.076609,3789.7,3789.6,0.87772149]
[1641183630290,1.20964479,3789.8,3789.6,1.10771249]
[1641183630489,0.076609,3789.7,3789.6,0.87772149]
[1641183631691,0.076609,3789.7,3789.4,2.00479]
[1641183631895,0.076609,3789.7,3789.4,3.17508532]
[1641183632091,1.20964479,3789.8,3789.5,0.229991]
[1641183632290,0.076609,3789.7,3789.5,0.229991]
[1641183632491,1.20964479,3789.8,3789.5,0.229991]
[1641183632892,1.20964479,3789.8,3789.4,3.17508532]
[1641183633092,1.20964479,3789.8,3788.9,69.2026]
[1641183633293,2.10181783,3789.8,3789.2,1.18105124]
[1641183633492,2.81916028,3789.7,3788.9,13.56237613]
[1641183633692,0.122356,3789.6,3788.9,8.56237613]
[1641183633893,0.934256,3789.6,3788.9,8.56237613]
[1641183634293,11.31,3789.3,3788.6,3.76023298]
[1641183634496,1.8650718,3789.2,3788.6,3.76023298]
[1641183635095,0.78453237,3789.1,3788.6,3.76023298]
[1641183635296,0.78453237,3789.1,3788.9,0.88621726]
[1641183635496,0.076609,3789.0,3788.9,0.88621726]
[1641183636597,0.51401994,3789.0,3788.6,2.89100726]
[1641183637497,0.076609,3789.0,3788.6,2.89100726]
[1641183637697,0.89570066,3788.9,3788.6,2.89100726]
[1641183638097,0.89570066,3788.9,3788.7,0.229991]
[1641183638296,0.89570066,3788.9,3788.7,0.907891]